Cogmind - Beta 12 @@@ ROGUE MODE // 2023.05.20 @ 19:33:37 Player: Decinym Result: Destroyed by S-10 Pest with Light Assault Rifle Performance ------------- Evolutions (0) 0 Regions Visited (2) 400 Robots Destroyed (6) 30 Value Destroyed (165) 165 Prototype IDs (0) 0 Alien Tech Used (0) 0 Bonus (0) 0 TOTAL SCORE: 595 Bonus ------- None Cogmind --------- Core Integrity 0/250 Matter 157/300 Energy 186/250 System Corruption 0% Temperature Cool (20) Movement Rolling (135) Ox3 Location -10/Mines Parts ------- > --- POWER (1) -------- Ion Engine > --- PROPULSION (2) --- Armored Wheel Armored Wheel > --- UTILITY (2) ------ Huge Storage Unit Improved Targeting Computer > --- WEAPON (2) ------- Beam Cannon Light Assault Rifle > --- INVENTORY (25) --- Light Treads Light Treads Armored Wheel Armored Wheel Improved Targeting Computer Improved Targeting Computer Assault Rifle Mini Grenade Launcher Mini Grenade Launcher Mini Grenade Launcher Peak State ------------ > --- POWER ------------ Ion Engine > --- PROPULSION ------- Armored Wheel Armored Wheel > --- UTILITY ---------- Huge Storage Unit Improved Targeting Computer > --- WEAPON ----------- Medium Laser Mini Grenade Launcher > --- INVENTORY -------- Ion Engine Light Treads Light Treads Armored Wheel Armored Wheel Improved Targeting Computer Improved Targeting Computer Beam Cannon Assault Rifle Light Assault Rifle Mini Grenade Launcher Mini Grenade Launcher [Rating: 12] Favorites ----------- Power Ion Engine Engine Ion Engine Propulsion Armored Wheel Leg Aluminum Leg Wheel Armored Wheel Utility Small Storage Unit Storage Small Storage Unit Processor Improved Targeting Computer Weapon Light Assault Rifle Energy Gun Medium Laser Energy Cannon Beam Cannon Ballistic Gun Light Assault Rifle Launcher Mini Grenade Launcher Build | -11 -10 -10 ------- Run | Jun Mat Min Slots Evolved . | . . . Power . | . . . Propulsion . | . . . Utility . | . . . Weapon . | . . . Parts Attached 9 | . 5 4 Power 2 | . 1 1 Engine 2 | . 1 1 Core . | . . . Reactor . | . . . Propulsion 2 | . 2 . Treads . | . . . Leg . | . . . Wheel 2 | . 2 . Hover . | . . . Flight . | . . . Utility 2 | . 2 . Device . | . . . Storage 1 | . 1 . Processor 1 | . 1 . Hackware . | . . . Protection . | . . . Artifact . | . . . Weapon 3 | . . 3 Energy Gun . | . . . Energy Cannon 1 | . . 1 Ballistic Gun 1 | . . 1 Ballistic Cannon . | . . . Launcher 1 | . . 1 Special Weapon . | . . . Impact Weapon . | . . . Slashing Weapon . | . . . Piercing Weapon . | . . . Special Melee Weapon . | . . . Unidentified Prototypes . | . . . Parts Lost 2 | . . 2 Power 1 | . . 1 Propulsion . | . . . Utility . | . . . Weapon 1 | . . 1 Highest Loss Streak 2 | . . 2 To Critical Strikes . | . . . Average Slot Usage (%) 92 | . 91 100 Engine 14 | . 14 14 Leg 13 | . 15 . Wheel 14 | . 12 28 Storage 14 | . 14 14 Processor 7 | . 5 14 Energy Gun 13 | . 14 7 Ballistic Gun 13 | . 14 7 Naked Turns . | . . . Heaviest Build 89 | 11 88 89 Greatest Support 24 | 20 24 24 Greatest Overweight (x) 3 | . 3 3 Average Overweight (x) 1 | . 1 3 Largest Inventory Capacity 25 | 8 25 25 Average Capacity 15 | 8 14 25 Most Carried 12 | 6 12 12 Average Carried 8 | 6 8 11 Final Capacity 25 | 8 25 25 Final Carried 12 | 6 12 10 Class Distribution -------------------- 100% | Mutant Dominant Class ---------------- Mutant | -10/Materials Mutant | -10/Mines Resources | -11 -10 -10 ----------- Run | Jun Mat Min Matter Collected 247 | 200 47 . Remotely . | . . . Salvage Created 120 | . 120 . Parts 7 | . 7 . Haulers Intercepted . | . . . Recyclers Shooed . | . . . Parts Field Recycled . | . . . Retrieved Matter . | . . . Parts Self-Destructed . | . . . Prevented . | . . . Kills | -11 -10 -10 ------- Run | Jun Mat Min Combat Hostiles Destroyed 4 | . 2 2 Guns 1 | . 1 . Cannons 1 | . . 1 AOE 1 | . . 1 Classes Destroyed 5 | . 2 3 Builder 1 | . . 1 Watcher 1 | . 1 . Swarmer 1 | . . 1 Grunt 2 | . 2 . Demolisher 1 | . . 1 Best Kill Streak 3 | . 2 3 Combat Bots Only 2 | . 2 2 Max Kills in Single Turn 2 | . 1 2 Gunslinging . | . . . Exploded 1 | . . 1 Melee . | . . . Uniques/NPCs Destroyed . | . . . Combat | -11 -10 -10 -------- Run | Jun Mat Min Damage Taken 678 | . 68 610 Core 258 | . 46 212 Absorbed by Shields . | . . . Core Remaining (%) 100 | 100 . . Volleys Fired 29 | . 18 11 Largest 2 | . 2 2 Hottest 80 | . 70 80 Shots Fired 49 | . 36 13 Gun 38 | . 36 2 Cannon 2 | . . 2 Launcher 9 | . . 9 Special . | . . . Kinetic 20 | . 18 2 Thermal 20 | . 18 2 Explosive 9 | . . 9 Electromagnetic . | . . . Robot Hit Streak 6 | . 6 3 Robot Miss Streak 2 | . 2 1 Penetration Max . | . . . Secondary Targets 1 | . 1 . Max Gunslinging Chain 1 | . 1 . Shots Hit Robots 32 | . 24 8 Core Hits 22 | . 7 15 Critical Kills . | . . . Critical Parts Destroyed . | . . . Critical Strikes 4 | . 4 . Burn 4 | . 4 . Melee Attacks . | . . . Impact . | . . . Slashing . | . . . Piercing . | . . . Sneak Attacks . | . . . Combat Hostiles . | . . . Follow-up Attacks . | . . . Damage Inflicted 620 | . 257 363 Guns 263 | . 257 6 Cannons 18 | . . 18 Explosions 339 | . . 339 Melee . | . . . Ramming . | . . . Kinetic 100 | . 94 6 Thermal 181 | . 163 18 Explosive 339 | . . 339 Electromagnetic . | . . . Impact . | . . . Slashing . | . . . Piercing . | . . . Highest Corruption . | . . . Average Corruption . | . . . Corruption Purged . | . . . Corruption Blocked . | . . . Overload Shots . | . . . Overflow Damage 37 | . . 37 Projectiles . | . . . Explosions 37 | . . 37 Melee . | . . . Knockbacks . | . . . Impact . | . . . Kinetic . | . . . Secondary . | . . . Self-Inflicted Damage 194 | . . 194 Shots 6 | . . 6 Rammed . | . . . Targets Rammed . | . . . Kicked . | . . . Crushed . | . . . Highest Temperature 179 | . 179 40 Average Temperature 60 | . 62 25 Received Heat Transfer 39 | . 39 . Siege Activations . | . . . Robots Corrupted . | . . . Combat Hostiles . | . . . Parts Fried . | . . . Impact Corruptions . | . . . Robots Melted 1 | . 1 . Combat Hostiles 1 | . 1 . Parts Melted 1 | . 1 . Heat Transferred 814 | . 777 37 Parts Sabotaged . | . . . Parts Stolen . | . . . Parts Stripped . | . . . Power Chain Reactions . | . . . Missiles Intercepted . | . . . Alert | -11 -10 -10 ------- Run | Jun Mat Min Peak Influence 114 | . 114 83 Initial 44 | . . 44 Average 81 | . 84 69 Maximum Alert Level . | . . . Low Security (%) 100 | 100 100 100 Level 1 . | . . . Level 2 . | . . . Level 3 . | . . . Level 4 . | . . . Level 5 . | . . . High Security . | . . . Max Security . | . . . Squads Dispatched 1 | . 1 . Investigation . | . . . Extermination . | . . . Reinforcement 1 | . 1 . Assault . | . . . Garrison . | . . . Intercept . | . . . Searches Triggered . | . . . Construction Impeded . | . . . Haulers Reinforced . | . . . Active Scanning Responses . | . . . Cargo Convoy Interrupts . | . . . Stealth | -11 -10 -10 --------- Run | Jun Mat Min Distress Signals 1 | . 1 . Communications Jammed . | . . . Distress Signals . | . . . Times Spotted 11 | . 6 5 Peak Tracking Total 4 | . 4 3 Tactical Retreats . | . . . Traps | -11 -10 -10 ------- Run | Jun Mat Min Traps Triggered . | . . . Indirectly . | . . . Trap Hack Attempts . | . . . Triggered . | . . . Disarmed . | . . . Reprogrammed . | . . . Reused . | . . . Traps Extracted . | . . . Installed . | . . . Triggered . | . . . Machines | -11 -10 -10 ---------- Run | Jun Mat Min Machines Disabled . | . . . Max in Single Turn . | . . . Machines Repaired . | . . . Machines Sabotaged . | . . . Overloaded Fab Kills . | . . . Hacking | -11 -10 -10 --------- Run | Jun Mat Min Machines Accessed 1 | . 1 . Terminals 1 | . 1 . Fabricators . | . . . Repair Stations . | . . . Recycling Units . | . . . Scanalyzers . | . . . Garrison Access . | . . . Total Hacks 3 | . 3 . Successful 2 | . 2 . Failed 1 | . 1 . Catastrophic . | . . . Database Lockouts . | . . . Manual 3 | . 3 . Terminals 3 | . 3 . Fabricators . | . . . Repair Stations . | . . . Recycling Units . | . . . Scanalyzers . | . . . Garrison Access . | . . . Terminal Hacks 2 | . 2 . Robot Analysis 2 | . 2 . Fabricator Hacks . | . . . Repair Station Hacks . | . . . Recycling Unit Hacks . | . . . Scanalyzer . | . . . Garrison Access Hacks . | . . . Unauthorized Hacks . | . . . Terminals . | . . . Fabricators . | . . . Repair Stations . | . . . Recycling Units . | . . . Scanalyzers . | . . . Garrison Access . | . . . Data Cores Recovered . | . . . Used . | . . . Hacking Detections . | . . . Full Trace Events . | . . . Feedback Events . | . . . Feedback Blocked . | . . . Robot Schematics Acquired . | . . . Robots Built . | . . . Authchips . | . . . Time . | . . . Total Robot Build Rating . | . . . Part Schematics Acquired . | . . . Parts Built . | . . . Authchips . | . . . Time . | . . . Total Part Build Rating . | . . . Parts Repaired . | . . . Time . | . . . Parts Recycled . | . . . Recycled Matter . | . . . Retrieved Matter . | . . . Retrieved Components . | . . . Parts Scanalyzed . | . . . Part Schematics Acquired . | . . . Parts Damaged . | . . . Bothacking | -11 -10 -10 ------------ Run | Jun Mat Min Used RIF Installer . | . . . Robots Hacked . | . . . Non-combat . | . . . Combat . | . . . Robot Hacks Applied . | . . . Relay Couplers Released . | . . . Fabnet Peak Effective % . | . . . Robots Rewired . | . . . Allies Hacked . | . . . Hacks Repelled . | . . . Allies | -11 -10 -10 -------- Run | Jun Mat Min Total Allies . | . . . Largest Group . | . . . Highest-Rated Group . | . . . Highest-Rated Ally . | . . . Total Orders . | . . . Ally Attacks . | . . . Total Damage . | . . . Kills . | . . . Allies Corrupted . | . . . Allies Melted . | . . . Intel | -11 -10 -10 ------- Run | Jun Mat Min Robot Analysis Total 2 | . 2 . Derelict Logs Recovered . | . . . Drone Launches . | . . . Drone Recoveries . | . . . Exploration | -11 -10 -10 ------------- Run | Jun Mat Min Turns Passed 306 | 3 258 45 Spaces Moved 171 | 3 155 13 Core . | . . . Treads . | . . . Legs 71 | 3 68 . Wheels 100 | . 87 13 Hover . | . . . Flight . | . . . Fastest Speed 90 | 120 90 135 Average Speed 123 | 120 122 135 Slowest Speed 135 | 120 135 135 Overloaded Moves . | . . . Propulsion Burnouts . | . . . Robots Hopped . | . . . Cave-ins Triggered . | . . . Exploration Rate (%) 11 | 2 24 8 Regions Visited 2 Branch Regions 1 Pre-discovered Areas . | . . . Known Exits Taken . | . . . Unknown Exits Taken 2 | 1 1 . Scrap Searched . | . . . Spaces Dug . | . . . Terrain Destroyed 74 | . . 74 Melee . | . . . Projectile . | . . . AOE 74 | . . 74 Terrain Rammed . | . . . Walls Destroyed . | . . . Machines Disabled . | . . . Actions | -11 -10 -10 --------- Run | Jun Mat Min Total 223 | 2 193 28 Wait . | . . . Move 169 | 2 154 13 Hop . | . . . Pick Up 9 | . 9 . Fast Attach 3 | . 3 . Attach 2 | . . 2 Detach . | . . . Swap 4 | . 2 2 Drop 7 | . 7 . Fire 29 | . 18 11 Melee . | . . . Ram . | . . . Kick . | . . . Crush . | . . . Escape Stasis . | . . . Rewire . | . . . Trap . | . . . Miscellaneous . | . . . Route ------- -11/Junkyard -10/Materials -10/Mines History --------- Turn | Location | Event 1 | -11/Junkyard | Discovered new exit (range 3) 4 | -11/Junkyard | Entered Materials 243 | -10/Materials | Discovered new exit (range 12) 262 | -10/Materials | Entered Mines 263 | -10/Mines | Assembled infested the area 272 | -10/Mines | Core integrity fell below 50% 286 | -10/Mines | Core integrity fell below 20% 307 | -10/Mines | Destroyed by S-10 Pest with Light Assault Rifle Last Messages --------------- 00276_ The unstable cave ceiling collapses. 00280_ K-01 Serf collects debris. 00281_ Med. Laser destroyed. 00281_ Destroyed Med. Laser. 00283_ The unstable cave ceiling collapses. 00283_ K-01 Serf collects debris. 00284_ The unstable cave ceiling collapses. 00286_ K-01 Serf cleans the Seismic Survey Station. 00287_ Ion Engine destroyed. 00288_ The unstable cave ceiling collapses. 00291_ D-53 Grenadier destroyed. 00292_ K-01 Serf collects debris. 00294_ The unstable cave ceiling collapses. 00296_ K-01 Serf collects debris. 00297_ The unstable cave ceiling collapses. 00299_ K-01 Serf collects debris. 00301_ The unstable cave ceiling collapses. 00303_ K-01 Serf collects debris. 00304_ K-01 Serf cleans the Plasma Injector. 00305_ The unstable cave ceiling collapses. Map ----- +----------------------------------------------------+ | ?????????????????????????????????????????????????? | | ?????????????????????????????????????????????????? | | ?????????????????????????????????????????????????? | | ?????????????????????????????????????????????????? | | ?????????????????????????????????????????????????? | | ?????????????????????????????????????????????????? | | ?????????????????????????????????????????????????? | | ?????????????????????????????????????????????????? | | ?????????????????????????????????????????????????? | | ?????????????????????????????????????????????????? | | ?????????????????????????????????????????????????? | | ?????????????????????????????????????????????????? | | ?????????????????????????????????????????????????? | | ?????????????????????????????????????????????????? | | ?????????????????????????????????????????????????? | | ?????????????????????????????????????????????????? | | ?????????????????????????????????????????????????? | | ?????????????????????????????????????????????????? | | ????????????????????????????????????????????#????? | | ??????????????????????????????????????????? #????? | | ???????????????#?????????????#########? #?? #????? | | ???????????????# ??????????## # # ## #? #????? | | ???????????????# ???????## # ## ###??? | | ???????????????? ????## # #??? | | ???????????????? """s ### ## #??? | | ???????????????? """ s@ " """ #??? | | ???????????????? """ ## " """ #??? | | ???????????????? k ???# # " """ #??? | | ???????????????# "?????# # # #??? | | ???????????????# ???????# """ #??? | | ???????????????#?????????# ## # """ #??? | | ?????????????????????????# ## """ #??? | | ?????????????????????????#### ### #??? | | ????????????????????????????# ###?############???? | | ????????????????????????????###??????????????????? | | ?????????????????????????????????????????????????? | | ?????????????????????????????????????????????????? | | | | | | | | | | | | | | | | | | | | | | | | | | | +----------------------------------------------------+ Best States ------------- Heat Dissipation 25 Energy Generation 10 Energy Capacity 250 Matter Stores 300 Matter Capacity 300 Sight Range 16 Terrain Scan Density 10 Evasion (%) 55 Targeting Accuracy 6 Item Schematics ----------------- None Robot Schematics ------------------ None Fabricated ------------ Nothing Alien Tech Used ----------------- None Achievements -------------- None Challenges ------------ None Game ------ Seed WeightFrostClaws Manual? 0 Play Time 00:03:23 Cumulative 335.0 hours Start 2023.05.20 @ 19:30:46 End 2023.05.20 @ 19:33:37 Sessions 1 Manual Loads 0 Difficulty Rogue Special Mode None Game No. 357 Rogue 357 Adventurer 0 Explorer 0 Win Type - Total 28 Types 16/3/3/1/2/0/3/0/0 Lore% 86 Gallery% 86 Achievement% 82 Wizard Run 0 Options --------- ASCII 0 Keyboard 0 Movement Arrows Keybinds 0 Fullscreen 2 Font 24/Smallcaps Map View 76x50 Tactical HUD 1 Map Filters NONE Filters NONE Steam 1 RUN: bb49d214-8470-462b-996f-8d16734d235a